Cogmind - Beta 13 @@@ ROGUE MODE // 2024.04.10 @ 16:40:15 Player: arcadio rl Result: Destroyed by RX-5DS(R) with Subdweller Machine Gun Performance ------------- Evolutions (0) 0 Regions Visited (2) 400 Robots Destroyed (10) 50 Value Destroyed (273) 273 Prototype IDs (0) 0 Alien Tech Used (0) 0 Bonus (-12) -12 TOTAL SCORE: 711 Bonus ------- Friendly Fire -12 Cogmind --------- Core Integrity 0/250 Matter 300/300 Energy 249/250 System Corruption 0% Temperature Cool (0) Movement Rolling (175) Ox5 Location -10/Subcaves Parts ------- > --- POWER (1) -------- Ion Engine > --- PROPULSION (2) --- Compact Wheel > --- UTILITY (2) ------ Huge Storage Unit > --- WEAPON (2) ------- (None) > --- INVENTORY (25) --- Ion Engine Ion Engine Light Treads Light Treads Aluminum Leg Aluminum Leg Small Storage Unit Signal Interpreter Signal Interpreter Scrap Shield EM Pulse Gun Peak State ------------ > --- POWER ------------ Ion Engine > --- PROPULSION ------- Compact Wheel Compact Wheel > --- UTILITY ---------- Huge Storage Unit Signal Interpreter > --- WEAPON ----------- Light Assault Rifle Light Assault Rifle > --- INVENTORY -------- Ion Engine Light Treads Light Treads Aluminum Leg Aluminum Leg Small Storage Unit Signal Interpreter Signal Interpreter Tractor Beam EM Pulse Gun [Rating: 8] Favorites ----------- Power Ion Engine Engine Ion Engine Propulsion Compact Wheel Wheel Compact Wheel Utility Huge Storage Unit Device Tractor Beam Storage Huge Storage Unit Processor Signal Interpreter Weapon Light Assault Rifle Energy Gun EM Pulse Gun Ballistic Gun Light Assault Rifle Build | -11 -10 -10 ------- Run | Yrd Mat Sub Slots Evolved . | . . . Power . | . . . Propulsion . | . . . Utility . | . . . Weapon . | . . . Parts Attached 13 | 6 6 1 Power 2 | 1 1 . Engine 2 | 1 1 . Core . | . . . Reactor . | . . . Propulsion 2 | 2 . . Treads . | . . . Leg . | . . . Wheel 2 | 2 . . Hover . | . . . Flight . | . . . Utility 5 | 1 3 1 Device 2 | . 1 1 Storage 2 | 1 1 . Processor 1 | . 1 . Hackware . | . . . Protection . | . . . Artifact . | . . . Weapon 4 | 2 2 . Energy Gun 2 | 2 . . Energy Cannon . | . . . Ballistic Gun 2 | . 2 . Ballistic Cannon . | . . . Launcher . | . . . Special Weapon . | . . . Impact Weapon . | . . . Slashing Weapon . | . . . Piercing Weapon . | . . . Special Melee Weapon . | . . . Unidentified Prototypes . | . . . Parts Lost 5 | . 1 4 Power . | . . . Propulsion 1 | . . 1 Utility 1 | . . 1 Weapon 3 | . 1 2 Highest Loss Streak 4 | . 1 4 To Critical Strikes . | . . . Average Slot Usage (%) 94 | . 94 94 Engine 14 | . 14 14 Wheel 27 | . 28 25 Device 2 | . . 11 Storage 14 | . 14 14 Processor 6 | . 7 1 Energy Gun 7 | . 8 . Ballistic Gun 20 | . 19 25 Naked Turns . | . . . Heaviest Build 92 | 14 92 88 Greatest Support 32 | 32 32 32 Greatest Overweight (x) 5 | . 2 5 Average Overweight (x) 1 | . 1 2 Largest Inventory Capacity 25 | 8 25 25 Average Capacity 18 | 7 18 25 Most Carried 13 | 6 11 13 Average Carried 9 | 3 9 11 Final Capacity 25 | 8 25 25 Final Carried 12 | 6 11 12 Class Distribution -------------------- 100% | Mutant Dominant Class ---------------- Mutant | -10/Materials Mutant | -10/Subcaves Resources | -11 -10 -10 ----------- Run | Yrd Mat Sub Matter Collected 385 | 258 105 22 Remotely 22 | . . 22 Salvage Created 345 | . 345 . Parts 21 | . 21 . Haulers Intercepted . | . . . Recyclers Shooed 1 | . 1 . Parts Field Recycled . | . . . Retrieved Matter . | . . . Parts Self-Destructed 6 | . . 6 Prevented . | . . . Kills | -11 -10 -10 ------- Run | Yrd Mat Sub Combat Hostiles Destroyed 9 | . 9 . Guns 8 | . 8 . Classes Destroyed 3 | . 3 . Watcher 1 | . 1 . Swarmer 3 | . 3 . Grunt 6 | . 6 . Best Kill Streak 3 | . 3 . Combat Bots Only 3 | . 3 . Max Kills in Single Turn 1 | . 1 . Gunslinging . | . . . Exploded . | . . . Melee . | . . . Uniques/NPCs Destroyed . | . . . Combat | -11 -10 -10 -------- Run | Yrd Mat Sub Hostile Shots Fired 69 | . 49 20 Missed 15 | . 11 4 Damage Taken 728 | . 405 323 Core 259 | . 133 126 Absorbed by Shields . | . . . Core Remaining (%) 100 | 100 . . Volleys Fired 44 | . 38 6 Largest 2 | . 2 2 Hottest 80 | . 80 40 Shots Fired 88 | . 76 12 Gun 88 | . 76 12 Cannon . | . . . Launcher . | . . . Special . | . . . Kinetic 59 | . 47 12 Thermal . | . . . Explosive . | . . . Electromagnetic 29 | . 29 . Robot Hit Streak 11 | . 11 2 Robot Miss Streak 3 | . 3 3 Penetration Max . | . . . Secondary Targets . | . . . Shots Hit Robots 51 | . 47 4 Core Hits 21 | . 19 2 Critical Kills . | . . . Critical Parts Destroyed . | . . . Critical Strikes 1 | . 1 . Corrupt 1 | . 1 . Melee Attacks . | . . . Impact . | . . . Slashing . | . . . Piercing . | . . . Sneak Attacks . | . . . Combat Hostiles . | . . . Follow-up Attacks . | . . . Damage Inflicted 529 | . 487 42 Guns 520 | . 478 42 Cannons . | . . . Explosions . | . . . Melee . | . . . Ramming 9 | . 9 . Kinetic 263 | . 221 42 Thermal . | . . . Explosive . | . . . Electromagnetic 257 | . 257 . Impact . | . . . Slashing . | . . . Piercing . | . . . Highest Corruption . | . . . Average Corruption . | . . . Corruption Purged . | . . . Corruption Blocked . | . . . Overload Shots . | . . . Overflow Damage . | . . . Projectiles . | . . . Explosions . | . . . Melee . | . . . Knockbacks . | . . . Impact . | . . . Kinetic . | . . . Secondary . | . . . Self-Inflicted Damage 4 | . 4 . Shots . | . . . Rammed 2 | . 2 . Targets Rammed 2 | . 2 . Kicked . | . . . Crushed . | . . . Highest Temperature 120 | . 120 . Average Temperature 35 | . 35 . Received Heat Transfer 222 | . 162 60 Siege Activations . | . . . Robots Corrupted 1 | . 1 . Combat Hostiles 1 | . 1 . Parts Fried . | . . . Impact Corruptions . | . . . Robots Melted . | . . . Combat Hostiles . | . . . Parts Melted . | . . . Heat Transferred . | . . . Parts Sabotaged . | . . . Parts Stolen . | . . . Parts Stripped . | . . . Power Chain Reactions . | . . . Alert | -11 -10 -10 ------- Run | Yrd Mat Sub Peak Influence 196 | . 196 . Initial . | . . . Average 84 | . 92 . Maximum Alert Level . | . . . Low Security (%) 100 | 100 100 . Level 1 . | . . . Level 2 . | . . . Level 3 . | . . . Level 4 . | . . . Level 5 . | . . . High Security . | . . . Max Security . | . . . Squads Dispatched 2 | . 2 . Investigation 1 | . 1 . Extermination . | . . . Reinforcement 1 | . 1 . Assault . | . . . Garrison . | . . . Intercept . | . . . Searches Triggered . | . . . Construction Impeded . | . . . Haulers Reinforced . | . . . Active Scanning Responses . | . . . Cargo Convoy Interrupts . | . . . Stealth | -11 -10 -10 --------- Run | Yrd Mat Sub Distress Signals 3 | . 3 . Communications Jammed . | . . . Distress Signals . | . . . Times Spotted 32 | . 23 9 Peak Tracking Total 7 | . 4 7 Tactical Retreats 5 | . 5 . Traps | -11 -10 -10 ------- Run | Yrd Mat Sub Traps Triggered . | . . . Indirectly . | . . . Trap Hack Attempts . | . . . Triggered . | . . . Disarmed . | . . . Reprogrammed . | . . . Reused . | . . . Traps Extracted . | . . . Installed . | . . . Triggered . | . . . Machines | -11 -10 -10 ---------- Run | Yrd Mat Sub Machines Disabled 1 | . 1 . Max in Single Turn 1 | . 1 . Machines Repaired . | . . . Machines Dismantled . | . . . Machines Sabotaged . | . . . Overloaded Fab Kills . | . . . Hacking | -11 -10 -10 --------- Run | Yrd Mat Sub Machines Accessed 3 | . 3 . Terminals 3 | . 3 . Fabricators . | . . . Repair Stations . | . . . Recycling Units . | . . . Scanalyzers . | . . . Garrison Access . | . . . Total Hacks 11 | . 11 . Successful 3 | . 3 . Failed 8 | . 8 . Catastrophic 2 | . 2 . Database Lockouts . | . . . Manual 8 | . 8 . Terminals 11 | . 11 . Fabricators . | . . . Repair Stations . | . . . Recycling Units . | . . . Scanalyzers . | . . . Garrison Access . | . . . Terminal Hacks 2 | . 2 . Terminal Index 1 | . 1 . Recall Investigation 1 | . 1 . Fabricator Hacks . | . . . Repair Station Hacks . | . . . Recycling Unit Hacks . | . . . Scanalyzer . | . . . Garrison Access Hacks . | . . . Unauthorized Hacks 1 | . 1 . Terminals 1 | . 1 . Botnet 1 | . 1 . Fabricators . | . . . Repair Stations . | . . . Recycling Units . | . . . Scanalyzers . | . . . Garrison Access . | . . . Data Cores Recovered . | . . . Used . | . . . Hacking Detections 3 | . 3 . Full Trace Events 1 | . 1 . Feedback Events . | . . . Feedback Blocked . | . . . Robot Schematics Acquired . | . . . Robots Built . | . . . Authchips . | . . . Time . | . . . Total Robot Build Rating . | . . . Part Schematics Acquired . | . . . Parts Built . | . . . Authchips . | . . . Time . | . . . Total Part Build Rating . | . . . Parts Repaired . | . . . Time . | . . . Parts Recycled . | . . . Recycled Matter . | . . . Retrieved Matter . | . . . Retrieved Components . | . . . Parts Scanalyzed . | . . . Part Schematics Acquired . | . . . Parts Damaged . | . . . Bothacking | -11 -10 -10 ------------ Run | Yrd Mat Sub Used RIF Installer . | . . . Robots Hacked . | . . . Non-combat . | . . . Combat . | . . . Robot Hacks Applied . | . . . Relay Couplers Released . | . . . Fabnet Peak Effective % . | . . . Robots Rewired . | . . . Allies Hacked . | . . . Hacks Repelled . | . . . Allies | -11 -10 -10 -------- Run | Yrd Mat Sub Total Allies . | . . . Largest Group . | . . . Highest-Rated Group . | . . . Highest-Rated Ally . | . . . Total Orders . | . . . Ally Attacks . | . . . Total Damage . | . . . Kills . | . . . Allies Corrupted . | . . . Allies Melted . | . . . Intel | -11 -10 -10 ------- Run | Yrd Mat Sub Robot Analysis Total . | . . . Derelict Logs Recovered 3 | . . 3 Drone Launches . | . . . Drone Recoveries . | . . . Exploration | -11 -10 -10 ------------- Run | Yrd Mat Sub Turns Passed 909 | 69 713 127 Spaces Moved 564 | 61 421 82 Core 13 | 13 . . Treads . | . . . Legs . | . . . Wheels 551 | 48 421 82 Hover . | . . . Flight . | . . . Fastest Speed 50 | 50 100 130 Average Speed 116 | 89 116 133 Slowest Speed 175 | 100 130 175 Overloaded Moves . | . . . Propulsion Burnouts . | . . . Robots Hopped . | . . . Cave-ins Triggered . | . . . Exploration Rate (%) 17 | 4 40 8 Regions Visited 2 Branch Regions 1 Pre-discovered Areas 1 | . . 1 Known Exits Taken 1 | . 1 . Unknown Exits Taken 1 | 1 . . Scrap Searched 1 | . . 1 Spaces Dug . | . . . Terrain Destroyed . | . . . Melee . | . . . Projectile . | . . . AOE . | . . . Terrain Rammed . | . . . Walls Destroyed . | . . . Machines Disabled . | . . . Actions | -11 -10 -10 --------- Run | Yrd Mat Sub Total 738 | 72 575 91 Wait 102 | . 102 . Move 562 | 60 420 82 Hop . | . . . Pick Up 11 | 6 4 1 Fast Attach 8 | 6 2 . Attach 4 | . 3 1 Detach 4 | . 3 1 Swap 1 | . 1 . Drop . | . . . Fire 44 | . 38 6 Melee . | . . . Ram 2 | . 2 . Kick . | . . . Crush . | . . . Escape Stasis . | . . . Rewire . | . . . Trap . | . . . Miscellaneous . | . . . Route ------- -11/Scrapyard -10/Materials (discovered 3 exits: *Min x2 / *Sub) -10/Subcaves History --------- Turn | Location | Event 3 | -11/Scrapyard | Discovered new exit (range 15) 70 | -11/Scrapyard | Entered Materials 117 | -10/Materials | Discovered new exit (range 12) 332 | -10/Materials | Build established: Mutant 449 | -10/Materials | Discovered new exit (range 14) 560 | -10/Materials | Discovered new exit (range 8) 579 | -10/Materials | Identified exit to Subcaves 614 | -10/Materials | Identified exit to Mines 630 | -10/Materials | Core integrity fell below 50% 783 | -10/Materials | Entered Subcaves 825 | -10/Subcaves | Learned location of Storage (-7) 864 | -10/Subcaves | Ambushed by swarm of Subdwellers 866 | -10/Subcaves | Ambushed by Subdwellers from Twisted Machinery 866 | -10/Subcaves | Ambushed by Subdwellers from Twisted Machinery 909 | -10/Subcaves | Core integrity fell below 20% 910 | -10/Subcaves | Lost 4 allies 910 | -10/Subcaves | Destroyed by RX-5DS(R) with Subdweller Machine Gun Last Messages --------------- Machinery. 00868_ XZ-PTW(g) destroyed. 00868_ VF-NMC(g) destroyed. 00869_ Z3-EUD(R) destroyed. 00870_ VI-IUO(g) destroyed. 00872_ HV Slug penetrates Wall. 00873_ Subatomizers dissect the Carbon-fiber Leg. 00886_ Acquired derelict log, extracted data. Data stored: Mines entrances (x2). 00891_ Searching scrap... 00891_ Found Spk. Treads. 00891_ Found Enh. Flamer. 00891_ Found 29 Matter. 00895_ Acquired 2 matter. 00897_ Com. Wheel destroyed. 00899_ Lgt. Assault Rifle destroyed. 00901_ Q4-64Z(R) destroyed. 00904_ Tractor Beam destroyed. 00910_ Lgt. Assault Rifle destroyed. Map ----- +----------------------------------------------------+ | ?????????????????????????????????????????????????? | | ?????????????????????????????????????????????????? | | ?????????????????????????????????????????????????? | | ?????????????????????????????????????????????????? | | ?????????????????????????????????????????????????? | | ?????????????????????????????????????????????????? | | ?????????????????????????????????????????????????? | | ?????????????????????????????????????????????????? | | ?????????????????????????????????????????????????? | | ????????????????????????????????????????????????? | | ???????????????????????? ??????????????????????? | | ????????????????????????? ??????????????????????? | | ????????????????????????? ??????????????????????? | | ?????????????????# ????## ??????????????????????? | | ?????????????? ###% ???# ??????????????????????? | | ?????????????? ??# ??????????????????????? | | ????????????? #### ??????????????????????? | | ????????????? ??????????????????????? | | ??????????????# ??????????????????????? | | #?????????????# ??????????????????????? | | ####?????????## #??????????????????????? | | # ##????????# ##?????????????????????? | | #????????# ##????????????????????? | | #????????# ## ##???????????????????? | | %## ##??????## #??# R #???????????????????? | | # ###????#!& #???# @ ##??????????????????? | | #????#&%& #???## =| #??????????????????? | | % ##???##!%&#?????## %# #??????????????????? | | ######=%*"##????# RR##?##??????????????????? | | ## # # =[= ###??##=& #?????????????????????? | | #### ! ##?# R%####???????????????????? | | ???# % #?# *! #???????????????????? | | ???# # ##### #?## ###?????????????????? | | ???# ######### ### ## ####??????????????? | | ???## ## ## ###?# #??????????????? | | ????#### #?## ## #######?????????? | | ???????# ##### #?????????? | | ???????### ##### #????????? | | ?????????## ### ##?????? ?????????? | | ??????????#???######## #### #??????????????????? | | ?????????????????????####??## #??????????????????? | | ????????????????????????????? #??????????????????? | | ????????????????????????????? #??????????????????? | | ????????????????????????????? ??????????????????? | | ?????????????????????????????##??????????????????? | | ?????????????????????????????????????????????????? | | ?????????????????????????????????????????????????? | | ?????????????????????????????????????????????????? | | ?????????????????????????????????????????????????? | | ?????????????????????????????????????????????????? | +----------------------------------------------------+ Best States ------------- Heat Dissipation 25 Energy Generation 10 Energy Capacity 250 Matter Stores 300 Matter Capacity 300 Sight Range 16 Terrain Scan Density 10 Evasion (%) 40 Item Schematics ----------------- None Robot Schematics ------------------ None Fabricated ------------ Nothing Alien Tech Used ----------------- None Achievements -------------- None Challenges ------------ None Game ------ Seed EncryptedGrapheneAxe Manual? 0 Play Time 00:26:59 Cumulative 101.6 hours Start 2024.04.09 @ 17:01:09 End 2024.04.10 @ 16:40:15 Sessions 2 Manual Loads 0 Difficulty Rogue Special Mode None Game No. 76 Rogue 76 Adventurer 0 Explorer 0 Win Type - Total 0 Types 0/0/0/0/0/0/0/0/0 Lore% 49 Gallery% 49 Achievement% 39 Wizard Run 0 Options --------- Layout 1 ASCII 0 Keyboard 1 Movement Numpad Keybinds 0 Fullscreen 1 Font 24/Smallcaps Map View 50x35 Zoom Use 0% Tactical HUD 1 Map Filters NONE Filters NONE Steam 1 RUN: 3a252043-e2d0-4d39-9091-01799a249846